bitfinex/quotes_SOLUSD_20241225
["timestamp","ask_amount","ask_price","bid_price","bid_amount"]
[1735116524054,6.1591,198.3,198.24,0.12549]
[1735116525564,20.0,198.23,198.14,0.75648708]
[1735116525763,20.0,198.23,198.09,41.25135591]
[1735116525764,20.0,198.18,198.09,41.25135591]
[1735116526075,0.82875609,198.17,198.09,25.6199562]
[1735116526619,0.82875609,198.17,198.06,0.12549]
[1735116526796,0.82875609,198.17,198.08,0.12549]
[1735116527493,0.82875609,198.17,198.07,0.75702494]
[1735116527688,0.82875609,198.17,198.05,0.7570569]
[1735116528082,0.82875609,198.17,198.06,0.12549]
[1735116528307,0.82875609,198.17,198.05,0.7570569]
[1735116528712,0.82875609,198.17,198.07,0.12549]
[1735116529596,0.82875609,198.17,198.07,0.88261712]
[1735116529802,0.82875609,198.17,198.09,0.12549]
[1735116533310,6.1591,198.16,198.09,0.12549]
[1735116533634,0.82875609,198.15,198.09,0.12549]
[1735116536440,20.0,198.11,197.98,1.5327]
[1735116536730,6.1591,198.09,197.98,1.5327]
[1735116536900,0.82875609,198.08,197.99,0.12549]
[1735116537332,0.82875609,198.08,197.95,0.7572677]
[1735116537552,0.6054,198.07,197.94,0.75744301]
[1735116537756,0.82875609,198.06,197.94,0.75744301]
[1735116538054,0.82875609,198.06,197.95,0.12549]
[1735116538256,0.82875609,198.06,197.94,0.75744301]
[1735116538818,0.82875609,198.06,197.97,23.902374]
[1735116542551,0.6054,198.07,197.99,23.902374]
[1735116551377,6.1591,198.09,198.01,0.12549]
[1735116551674,6.1591,198.09,198.03,0.12549]
[1735116551870,6.3089,198.14,198.05,23.902374]
[1735116551871,6.6136,198.14,198.05,23.902374]
[1735116554848,0.82875609,198.13,198.05,23.902374]
[1735116555573,0.82875609,198.13,198.02,0.12549]
[1735116556470,7.13775609,198.13,198.02,0.12549]
[1735116557171,7.13775609,198.13,198.02,23.902374]
[1735116558471,20.0,198.1,197.98,0.75727468]
[1735116558648,20.0,198.1,197.96,0.75727468]
[1735116558649,0.82875609,198.09,197.96,0.75727468]
[1735116559478,0.82875609,198.09,197.97,0.12549]
[1735116559655,0.82875609,198.09,197.97,0.88283388]
[1735116560066,0.82875609,198.09,197.99,0.12549]
[1735116561886,6.1379,198.08,197.99,0.12549]
[1735116562055,0.82875609,198.07,197.99,0.12549]
[1735116569078,0.6054,198.06,197.99,0.12549]
[1735116570284,6.9166,198.06,197.99,0.12549]
[1735116570447,0.82875609,198.05,197.99,0.12549]
[1735116583208,6.3118,198.04,197.89,31.6367]
[1735116583369,0.82875609,198.03,197.91,0.12549]
[1735116583899,0.82875609,198.03,197.93,0.12549]
[1735116584672,0.82875609,198.03,197.93,23.902374]
[1735116585490,6.6237,198.02,197.92,23.776884]
[1735116585672,0.82875609,198.01,197.92,23.776884]
[1735116585876,0.82875609,198.01,197.91,20.0]
[1735116586074,0.82875609,198.01,197.89,2.39436967]
[1735116586075,0.82875609,198.01,197.9,20.0]
[1735116586614,7.14155609,198.01,197.89,1.6367]
[1735116587394,20.0,197.98,197.86,0.75774488]
[1735116587696,0.82875609,197.97,197.85,0.75782984]
[1735116587898,6.6237,197.96,197.85,0.75782984]
[1735116588099,0.82875609,197.95,197.83,30.75788597]
[1735116588583,0.82875609,197.95,197.84,0.12549]
[1735116589202,0.82875609,197.95,197.84,23.902374]
[1735116590902,7.14345609,197.95,197.82,20.0]
[1735116591084,7.14345609,197.95,197.83,0.12549]
[1735116591416,7.14345609,197.95,197.82,20.0]
[1735116591706,7.14345609,197.95,197.81,20.12549]
[1735116591870,7.14345609,197.95,197.78,7.91691857]
[1735116591871,20.0,197.9,197.78,7.91691857]
[1735116592071,20.0,197.9,197.79,0.7581558]
[1735116592286,20.0,197.9,197.8,0.12549]
[1735116592681,0.82875609,197.89,197.8,0.12549]
[1735116593201,0.82875609,197.89,197.79,20.0]
[1735116593998,0.82875609,197.89,197.77,0.75811996]
[1735116594302,20.82875609,197.89,197.77,0.75811996]
[1735116595005,20.82875609,197.89,197.78,0.12549]
[1735116595305,0.82875609,197.91,197.81,0.12549]
[1735116595503,20.0,197.9,197.81,0.75803882]
[1735116595680,0.82875609,197.89,197.78,20.75803882]
[1735116596203,0.82875609,197.89,197.79,23.776884]
[1735116597998,0.6054,197.87,197.8,0.12549]
[1735116598304,0.6054,197.87,197.74,20.75818712]
[1735116598305,0.82875609,197.86,197.74,20.75818712]
[1735116599604,0.82875609,197.86,197.74,20.0]
[1735116600009,0.82875609,197.86,197.75,0.12549]
[1735116600301,6.1591,197.85,197.73,20.0]
[1735116600475,0.82875609,197.84,197.72,0.75832155]
[1735116600676,0.6054,197.83,197.68,2.81046679]
[1735116600888,0.6054,197.83,197.68,0.7584478]
[1735116600889,0.82875609,197.82,197.68,0.7584478]
[1735116601379,6.1591,197.81,197.68,0.7584478]
[1735116601602,0.82875609,197.8,197.67,10.0]
[1735116601911,0.82875609,197.8,197.67,10.75858012]
[1735116602405,0.82875609,197.8,197.67,10.0]
[1735116603591,0.82875609,197.8,197.69,0.12549]
[1735116605209,6.1591,197.81,197.71,43.902374]
[1735116605378,6.1591,197.81,197.73,23.902374]
[1735116606603,6.1591,197.87,197.77,0.12549]
[1735116606911,6.98785609,197.87,197.77,24.66058793]
[1735116607113,6.1591,197.87,197.77,24.66058793]
[1735116607282,0.82875609,197.86,197.77,23.902374]
[1735116613531,6.1591,197.87,197.79,0.12549]
[1735116613689,6.1591,197.87,197.81,23.902374]
[1735116624140,1.43415609,197.86,197.76,20.0]
[1735116624496,1.43415609,197.86,197.77,0.12549]
[1735116625729,1.43415609,197.86,197.74,1.5104]
[1735116627115,1.43415609,197.86,197.76,0.12549]
[1735116628043,6.3744,197.85,197.76,0.12549]
[1735116628258,0.82875609,197.84,197.76,0.12549]
[1735116630542,0.82875609,197.84,197.75,23.776884]
[1735116630727,7.0038,197.81,197.66,13.40637702]
[1735116631045,0.82875609,197.8,197.68,0.88406857]
[1735116631923,0.82875609,197.8,197.68,0.75857857]
[1735116632244,0.82875609,197.8,197.69,23.776884]
[1735116632464,0.82875609,197.8,197.68,23.776884]
[1735116632823,6.3984,197.77,197.65,0.75854333]
[1735116633046,0.82875609,197.76,197.65,0.75854333]
[1735116633244,0.82875609,197.76,197.68,0.12549]
[1735116633447,6.3984,197.77,197.68,0.12549]
[1735116633746,0.32875609,197.76,197.68,0.12549]
[1735116634054,0.32875609,197.76,197.68,23.902374]
[1735116634345,6.3984,197.74,197.62,25.68088819]
[1735116634524,6.3984,197.74,197.62,0.75874147]
[1735116634525,0.32875609,197.73,197.62,0.75874147]
[1735116635319,0.32875609,197.73,197.58,0.75877027]
[1735116638620,0.32875609,197.73,197.68,0.12549]
[1735116638815,6.3984,197.74,197.68,0.12549]
[1735116639020,6.3984,197.74,197.68,23.902374]
[1735116640329,6.72715609,197.79,197.68,23.902374]
[1735116641550,6.72715609,197.79,197.7,23.902374]
[1735116641848,6.3984,197.79,197.7,23.902374]
[1735116642220,6.3984,197.79,197.72,23.902374]
[1735116644946,0.6054,197.81,197.72,23.902374]
[1735116650158,0.6054,197.81,197.74,23.902374]
[1735116658655,0.6054,197.81,197.69,0.75834134]
[1735116658857,0.6054,197.81,197.67,10.0]
[1735116659169,0.6054,197.81,197.69,0.12549]
[1735116660065,0.6054,197.81,197.69,23.902374]
[1735116660662,0.6054,197.81,197.71,23.902374]
[1735116665965,0.32875609,197.8,197.71,23.902374]
[1735116666845,6.6354,197.79,197.71,23.902374]
[1735116667145,0.32875609,197.78,197.71,23.902374]
[1735116670768,6.6354,197.79,197.71,23.902374]
[1735116670957,6.6354,197.79,197.71,24.66082297]
[1735116673656,6.87715609,197.84,197.71,24.66082297]
[1735116673846,6.87715609,197.84,197.73,23.902374]
[1735116674051,6.87715609,197.84,197.75,23.902374]
[1735116674350,6.5484,197.84,197.77,23.902374]
[1735116676674,6.5484,197.84,197.76,0.75826798]
[1735116676882,6.5484,197.84,197.72,1.5705]
[1735116676883,0.32875609,197.83,197.72,2.32886822]
[1735116677180,0.32875609,197.83,197.73,0.12549]
[1735116677975,6.87715609,197.84,197.75,23.902374]
[1735116678477,6.5484,197.84,197.75,23.902374]
[1735116679064,6.5484,197.84,197.77,23.902374]
[1735116679270,0.6054,197.86,197.77,23.902374]
[1735116680784,26.9231,197.86,197.77,23.902374]
[1735116680993,0.32875609,197.85,197.77,23.902374]
[1735116682095,0.32875609,197.85,197.72,1.5705]
[1735116682391,6.5484,197.84,197.72,1.5705]
[1735116682600,6.64725609,197.83,197.69,0.75840121]
[1735116683184,6.64725609,197.83,197.7,0.12549]
[1735116683568,6.5484,197.81,197.67,11.5705]
[1735116683762,0.32875609,197.8,197.68,0.12549]
[1735116684099,0.32875609,197.8,197.67,12.32902477]
[1735116685086,0.32875609,197.8,197.68,23.902374]
[1735116686281,6.5484,197.81,197.72,23.902374]
[1735116686475,6.5484,197.81,197.74,23.902374]
[1735116686679,6.5484,197.81,197.76,23.902374]
[1735116688103,6.5484,197.86,197.76,23.902374]
[1735116688277,6.5484,197.86,197.78,0.12549]
[1735116688484,6.5484,197.86,197.78,23.902374]
[1735116690886,0.32875609,197.85,197.78,23.902374]
[1735116691294,0.32875609,197.85,197.73,23.776884]
[1735116691478,0.32875609,197.85,197.74,0.12549]
[1735116693489,12.8661,197.86,197.76,0.12549]
[1735116693672,12.8661,197.86,197.76,23.902374]
[1735116693879,0.32875609,197.85,197.76,23.902374]
[1735116694675,6.4473,197.83,197.66,43.40630797]
[1735116694874,0.32875609,197.82,197.68,0.75850119]
[1735116695108,0.32875609,197.82,197.69,0.12549]
[1735116695902,0.32875609,197.82,197.68,0.75850119]
[1735116696581,0.32875609,197.82,197.69,0.12549]
[1735116696798,0.32875609,197.82,197.71,0.12549]
[1735116697300,0.32875609,197.82,197.71,23.902374]
[1735116697501,0.32875609,197.82,197.73,23.902374]
[1735116697813,6.77605609,197.83,197.73,23.902374]
[1735116702903,6.4473,197.83,197.73,23.902374]
[1735116703979,6.4473,197.83,197.75,0.12549]
[1735116704184,6.4473,197.83,197.75,23.902374]
[1735116709293,0.32875609,197.82,197.75,23.902374]
[1735116709494,6.4473,197.83,197.75,23.902374]
[1735116709812,0.32875609,197.82,197.75,23.902374]
[1735116710222,6.4473,197.83,197.75,23.902374]
[1735116711391,0.32875609,197.82,197.75,23.902374]
[1735116713694,6.4473,197.83,197.75,23.902374]
[1735116715005,0.32875609,197.82,197.75,23.902374]
[1735116716897,0.32875609,197.82,197.72,0.75828944]
[1735116717096,0.32875609,197.82,197.72,20.75828944]
[1735116717609,0.32875609,197.82,197.73,0.12549]
[1735116718125,6.4473,197.83,197.73,0.12549]
[1735116718426,6.4473,197.83,197.73,23.902374]
[1735116719136,0.32875609,197.82,197.73,23.902374]
[1735116720010,6.77605609,197.83,197.73,23.902374]
[1735116720209,6.4473,197.83,197.75,23.902374]
[1735116721225,6.4473,197.83,197.74,23.902374]
[1735116721728,6.4473,197.83,197.76,23.902374]
[1735116723006,0.32875609,197.82,197.76,23.902374]
[1735116723895,0.32875609,197.82,197.69,0.75835605]
[1735116724226,6.64755609,197.82,197.69,0.75835605]
[1735116724822,6.64755609,197.82,197.69,0.12549]
[1735116725238,6.64755609,197.82,197.71,23.902374]
[1735116727345,20.0,197.79,197.71,23.902374]
[1735116727511,6.1091,197.77,197.71,23.902374]
[1735116727832,6.1091,197.77,197.68,0.12549]
[1735116728611,20.0,197.7,197.67,10.0]
[1735116728836,0.32875609,197.69,197.67,10.0]
[1735116731714,20.0,197.7,197.67,10.0]
[1735116732139,0.6054,197.72,197.68,0.12549]
[1735116732542,6.1091,197.73,197.68,23.902374]
[1735116732715,0.93415609,197.77,197.68,23.902374]
[1735116733418,6.1091,197.78,197.7,0.12549]
[1735116733617,6.1091,197.78,197.7,23.902374]
[1735116739451,20.0,197.8,197.72,23.902374]
[1735116740350,0.32875609,197.79,197.72,23.902374]
[1735116743454,0.32875609,197.79,197.68,23.776884]
[1735116743839,0.32875609,197.79,197.69,0.12549]
[1735116744633,6.3201,197.78,197.69,0.12549]
[1735116744832,0.32875609,197.77,197.69,0.12549]
[1735116745754,20.0,197.75,197.69,0.12549]
[1735116746054,0.32875609,197.74,197.69,0.12549]
[1735116746254,20.0,197.75,197.69,0.12549]
[1735116747255,0.32875609,197.77,197.69,0.12549]
[1735116747551,20.0,197.8,197.69,0.12549]
[1735116747859,0.32875609,197.79,197.69,0.12549]
[1735116748661,0.32875609,197.8,197.69,0.12549]
[1735116751438,20.0,197.78,197.69,0.12549]
[1735116751647,0.32875609,197.77,197.69,0.12549]
[1735116752939,20.0,197.78,197.69,0.12549]
[1735116753646,0.32875609,197.8,197.69,0.12549]
[1735116754166,20.32875609,197.8,197.69,0.12549]
[1735116754360,20.32875609,197.8,197.71,23.902374]
[1735116759037,0.32875609,197.82,197.73,23.902374]
[1735116759245,0.32875609,197.86,197.75,23.902374]
[1735116759449,0.32875609,197.86,197.77,23.902374]
[1735116760368,6.3173,197.87,197.77,24.66061574]
[1735116760369,0.32875609,197.87,197.77,24.66061574]
[1735116761357,0.32875609,197.88,197.77,24.66061574]
[1735116762256,0.32875609,197.88,197.77,23.902374]
[1735116763669,20.0,197.87,197.79,23.902374]
[1735116763875,0.32875609,197.9,197.81,23.902374]
[1735116764174,0.32875609,197.9,197.83,0.12549]
[1735116764377,0.32875609,197.9,197.83,23.902374]
[1735116764755,0.32875609,197.93,197.83,23.902374]
[1735116765261,20.0,197.91,197.83,23.902374]
[1735116765576,20.0,197.89,197.83,23.902374]
[1735116765872,0.32875609,197.88,197.83,23.902374]
[1735116766275,20.0,197.89,197.83,23.902374]
[1735116768478,0.32875609,197.88,197.83,23.902374]
[1735116769281,18.99575601,197.89,197.83,23.902374]
[1735116769582,18.99575601,197.89,197.83,0.12549]
[1735116775779,18.99575601,197.89,197.83,23.902374]
[1735116777083,6.3159,197.92,197.83,23.902374]
[1735116781170,20.0,197.89,197.83,23.902374]
[1735116786505,6.3159,197.92,197.83,23.902374]
[1735116786692,6.3147,197.95,197.83,24.66037155]
[1735116787000,6.3147,197.95,197.85,23.902374]
[1735116788491,6.3137,197.98,197.85,23.902374]
[1735116788695,20.0,197.95,197.85,23.902374]
[1735116788897,20.0,197.95,197.87,0.12549]
[1735116789077,20.0,197.95,197.87,23.902374]
[1735116789278,13.11946282,197.98,197.87,23.902374]
[1735116789279,6.80576282,197.98,197.87,23.902374]
[1735116790297,19.34950691,198.01,197.91,23.902374]
[1735116790476,19.34950691,198.01,197.9,6.4299]
[1735116790477,12.39428128,198.01,197.93,23.902374]
[1735116796811,6.3131,198.0,197.93,0.12549]
[1735116797693,6.3131,198.0,197.92,1.6117]
[1735116798017,20.0,197.96,197.86,1.6257]
[1735116798179,20.0,197.94,197.86,1.6257]
[1735116798984,20.0,197.9,197.86,1.6257]
[1735116800103,20.0,197.89,197.86,1.6257]
[1735116802202,26.3166,197.89,197.8,25.402584]
[1735116802501,31.8918469,197.89,197.8,1.6257]
[1735116803895,20.0,197.85,197.8,1.6257]
[1735116804100,20.0,197.84,197.74,6.4832]
[1735116805302,6.3185,197.83,197.75,0.12549]
[1735116806191,20.0,197.8,197.74,6.4832]
[1735116807208,20.0,197.8,197.75,0.12549]
[1735116808521,6.3185,197.83,197.75,0.12549]
[1735116808821,20.0,197.8,197.75,0.12549]
[1735116810023,6.3185,197.83,197.75,0.12549]
[1735116812228,20.0,197.8,197.75,0.12549]
[1735116814903,5.50611066,197.86,197.75,23.902374]
[1735116815229,12.8007,197.87,197.75,23.902374]
[1735116816726,20.0,197.84,197.75,23.902374]
[1735116827414,20.0,197.84,197.75,23.776884]
[1735116827939,20.0,197.84,197.76,0.12549]
[1735116828323,20.0,197.84,197.78,0.12549]
[1735116830016,6.3175,197.87,197.78,23.902374]
[1735116830942,11.8927469,197.87,197.78,23.902374]
[1735116831240,20.0,197.84,197.78,23.902374]
[1735116831549,26.3182,197.84,197.78,0.12549]
[1735116833431,31.82703641,197.84,197.77,1.5609]
[1735116833640,35.38665157,197.84,197.77,1.5609]
[1735116836814,38.25442701,197.84,197.77,1.5609]
[1735116842059,50.89082701,197.84,197.77,1.5609]
[1735116842353,20.0,197.8,197.72,1.5489]
[1735116842820,8.44302234,197.79,197.72,1.5489]
[1735116843022,20.0,197.76,197.72,1.5489]
[1735116843759,20.0,197.76,197.67,11.5489]
[1735116844061,20.0,197.74,197.67,11.5489]
[1735116844228,20.0,197.7,197.67,11.5489]
[1735116847041,26.3227,197.7,197.67,11.5489]
[1735116847241,26.3227,197.7,197.67,10.0]
[1735116847747,26.3227,197.7,197.62,8.2121]
[1735116848057,26.3227,197.7,197.57,0.12549]
[1735116848256,20.0,197.67,197.56,3.6920082]
[1735116849165,6.3239,197.66,197.56,3.6920082]
[1735116849355,20.0,197.63,197.56,3.6920082]
[1735116852976,20.0,197.63,197.57,0.12549]
[1735116853269,6.3229,197.7,197.59,25.451274]
[1735116853475,6.3229,197.7,197.61,23.902374]
[1735116854573,20.0,197.67,197.61,23.902374]
[1735116859178,6.3217,197.73,197.61,23.902374]
[1735116859381,6.3217,197.73,197.63,23.902374]
[1735116859566,4.84191251,197.74,197.63,23.902374]
[1735116860077,13.91045163,197.75,197.63,23.902374]
[1735116860379,13.91045163,197.75,197.65,23.902374]
[1735116860760,6.95522563,197.75,197.65,23.902374]
[1735116861375,6.3214,197.74,197.65,23.902374]
[1735116864662,20.0,197.71,197.65,23.902374]
[1735116867482,6.3214,197.74,197.65,23.902374]
[1735116867684,20.0,197.71,197.65,23.902374]
[1735116870883,20.0,197.71,197.64,1.6243]
[1735116871067,26.3224,197.71,197.64,1.6243]
[1735116872002,26.3224,197.71,197.65,0.12549]
[1735116875991,20.0,197.71,197.65,23.902374]
[1735116877304,6.3225,197.71,197.65,0.12549]
[1735116884507,6.3225,197.71,197.64,1.6243]
[1735116886900,6.3225,197.71,197.65,0.12549]
[1735116896812,6.3225,197.71,197.64,1.6243]
[1735116897000,6.3225,197.71,197.65,23.776884]
[1735116897001,20.0,197.71,197.65,23.776884]
[1735116897206,20.0,197.71,197.66,0.12549]
[1735116897599,20.0,197.7,197.66,0.12549]
[1735116897801,7.90734105,197.73,197.66,0.12549]
[1735116897997,22.13608211,197.74,197.66,0.12549]
[1735116898203,6.3214,197.74,197.66,0.12549]
[1735116900911,6.3214,197.74,197.68,23.902374]
[1735116901110,6.955226,197.75,197.68,23.902374]
[1735116902213,6.3214,197.74,197.67,8.1784]
[1735116902791,20.0,197.71,197.67,8.1784]
[1735116903217,20.0,197.71,197.67,1.6238]
[1735116904219,20.0,197.68,197.67,1.6238]
[1735116904721,20.0,197.68,197.63,1.74929]
[1735116905218,13.27792563,197.7,197.63,1.74929]
[1735116905723,21.20335662,197.7,197.63,1.74929]
[1735116906495,13.27792563,197.7,197.63,1.74929]
[1735116907032,13.27792563,197.7,197.63,1.6238]
[1735116907431,21.20335662,197.7,197.63,1.6238]
[1735116908722,20.0,197.65,197.63,1.6238]
[1735116908897,20.0,197.65,197.57,1.6238]
[1735116909727,20.0,197.64,197.57,1.6238]
[1735116910530,26.3248,197.64,197.57,1.6238]
[1735116912415,20.0,197.64,197.58,23.776884]
[1735116913125,20.0,197.64,197.59,0.12549]
[1735116913305,20.0,197.65,197.59,0.12549]
[1735116914533,11.46859325,197.68,197.59,0.12549]
[1735116916642,20.0,197.65,197.59,0.12549]
[1735116917536,20.0,197.65,197.58,23.776884]
[1735116917911,20.0,197.65,197.59,0.12549]
[1735116933848,20.0,197.65,197.57,1.6238]
[1735116934050,20.0,197.61,197.57,1.6238]
[1735116935171,24.84191251,197.64,197.58,0.12549]
[1735116935739,7.92543099,197.66,197.58,0.12549]
[1735116936081,7.92543099,197.69,197.58,6.65929]
[1735116936873,11.16461251,197.7,197.6,0.12549]
[1735116937172,1500.0,197.65,197.6,0.12549]
[1735116939480,1500.0,197.65,197.59,1.6665]
[1735116939785,1500.0,197.65,197.6,0.12549]
[1735116945596,1500.0,197.65,197.6,23.902374]
[1735116946505,1500.0,197.65,197.59,1.6665]
[1735116946996,1500.0,197.65,197.6,0.12549]
[1735116948166,1500.0,197.65,197.6,23.902374]
[1735116957599,1500.0,197.65,197.62,23.902374]
[1735116960723,1498.3334,197.65,197.64,23.902374]
[1735116961437,1496.6668,197.65,197.64,30.193674]
[1735116965114,1496.5414,197.65,197.64,30.193674]
[1735116966266,1493.2082,197.65,197.64,31.815574]
[1735116966635,1493.2082,197.65,197.62,20.0]
[1735116967669,20.0,197.61,197.56,2.1431082]
[1735116968258,20.0,197.61,197.57,0.12549]
[1735116968434,4.86198214,197.62,197.57,0.12549]
[1735116970271,20.0,197.6,197.56,2.1431082]
[1735116970831,8.79925594,197.59,197.56,2.1431082]
[1735116973853,26.3257,197.61,197.56,2.1431082]
[1735116974540,26.3257,197.61,197.57,0.12549]
[1735116975134,26.3257,197.61,197.56,2.1431082]
[1735116975348,20.0,197.59,197.56,2.1431082]
[1735116976361,20.0,197.58,197.56,2.1431082]
[1735116982933,6.3257,197.61,197.57,0.12549]
[1735116983127,6.14451926,197.62,197.57,0.12549]
[1735116983333,7.67320544,197.64,197.57,23.902374]
[1735116983553,6.3244,197.65,197.57,23.902374]
[1735116984553,12.46891926,197.65,197.57,0.12549]
[1735116984751,20.0,197.62,197.57,0.12549]
[1735116985154,20.0,197.62,197.56,2.1431082]
[1735116985363,26.3255,197.62,197.56,2.1431082]
[1735116985740,20.0,197.62,197.57,0.12549]
[1735116985956,10.59238866,197.65,197.57,0.12549]
[1735116986163,6.3246,197.64,197.57,0.12549]
[1735116986767,20.0,197.61,197.57,0.12549]
[1735116987360,20.0,197.61,197.56,2.1431082]
[1735116987551,6.3256,197.61,197.56,2.1431082]
[1735116988146,20.0,197.62,197.57,0.12549]
[1735116990364,26.3253,197.62,197.57,0.12549]
[1735116990862,26.3253,197.62,197.56,2.1431082]
[1735116994361,34.36848869,197.62,197.56,2.1431082]
[1735116998474,14.36848869,197.62,197.57,0.12549]
[1735116998879,4.4478694,197.65,197.57,0.12549]
[1735117001364,26.3246,197.64,197.57,0.12549]
[1735117005258,6.3236,197.68,197.57,0.12549]
[1735117008189,6.3236,197.68,197.57,23.902374]
[1735117008565,7.574277,197.71,197.57,23.902374]
[1735117008789,13.89657699,197.72,197.59,23.902374]
[1735117009157,5.90797699,197.72,197.61,0.12549]
[1735117009356,7.24874424,197.73,197.63,23.902374]
[1735117011701,6.322,197.72,197.63,23.902374]
[1735117013806,7.24874424,197.73,197.63,23.902374]
[1735117015998,17.849413,197.78,197.69,23.902374]
[1735117016187,7.92543099,197.8,197.71,0.12549]
[1735117016384,7.92543099,197.8,197.71,23.902374]
[1735117016700,7.92543099,197.8,197.73,23.902374]
[1735117016889,6.3176,197.86,197.75,0.12549]
[1735117017089,6.3176,197.86,197.77,0.12549]
[1735117017307,7.92543099,197.87,197.77,0.12549]
[1735117017801,6.3165,197.9,197.77,0.12549]
[1735117019110,20.0,197.87,197.77,0.12549]
[1735117019579,6.3173,197.87,197.77,0.12549]
[1735117020001,20.0,197.84,197.76,6.4882]
[1735117020205,43.776884,197.83,197.71,6.1236]
[1735117020511,20.0,197.81,197.71,6.1236]
[1735117020679,20.0,197.8,197.72,0.12549]
[1735117020875,20.0,197.81,197.72,0.12549]
[1735117022698,26.3192,197.81,197.72,0.12549]
[1735117023192,26.3192,197.81,197.71,6.1236]
[1735117023801,26.3192,197.81,197.72,0.12549]
[1735117030920,11.32329922,197.85,197.72,0.12549]
[1735117033720,20.0,197.82,197.72,0.12549]
[1735117036718,26.3189,197.82,197.72,0.12549]
[1735117037648,6.3189,197.82,197.72,0.12549]
[1735117037845,5.00519922,197.85,197.72,0.12549]
[1735117038062,6.3177,197.86,197.74,0.12549]
[1735117038257,6.3177,197.86,197.76,0.12549]
[1735117050566,6.3177,197.86,197.76,23.902374]
[1735117061485,26.3185,197.83,197.76,0.12549]
[1735117064876,20.0,197.84,197.76,0.12549]
[1735117065067,20.0,197.83,197.76,0.12549]
[1735117065274,20.0,197.84,197.76,0.12549]
[1735117065986,7.84288651,197.87,197.76,24.6606836]
[1735117066194,7.84288651,197.87,197.78,23.902374]
[1735117066394,7.84288651,197.88,197.78,24.66056311]
[1735117067270,6.3166,197.89,197.78,24.66056311]
[1735117069395,7.84288651,197.91,197.8,23.902374]
[1735117069696,7.84288651,197.91,197.82,23.902374]
[1735117070097,7.84288651,197.91,197.83,6.1797]
[1735117070499,6.3155,197.93,197.84,23.776884]
[1735117075312,6.3144,197.96,197.84,23.776884]
[1735117077422,6.3144,197.96,197.85,0.12549]
[1735117082513,6.3144,197.96,197.86,1.5852]
[1735117085923,6.3144,197.96,197.86,1.5852]
[1735117087304,20.0,197.93,197.86,1.5852]
[1735117088012,6.3156,197.92,197.86,1.5852]
[1735117088318,6.3156,197.92,197.83,6.1797]
[1735117088932,20.0,197.89,197.8,1.5852]
[1735117089296,26.3168,197.89,197.8,1.5852]
[1735117095099,20.0,197.91,197.8,1.5852]
[1735117095281,20.0,197.9,197.8,1.5852]
[1735117099769,6.026,197.89,197.8,1.5852]
[1735117101384,12.3426,197.89,197.8,1.5852]
[1735117115634,6.3166,197.89,197.8,1.5852]
[1735117128445,14.15948651,197.89,197.8,1.5852]
[1735117129360,6.3166,197.89,197.8,1.5852]
[1735117138242,20.0,197.9,197.81,23.776884]
[1735117138435,7.84288651,197.92,197.83,23.776884]
[1735117138641,7.84288651,197.92,197.86,6.3737]
[1735117138940,7.84288651,197.92,197.87,23.776884]
[1735117139835,7.84288651,197.95,197.87,23.776884]
[1735117140854,7.84288651,197.96,197.87,23.776884]
[1735117141757,4.29011524,197.97,197.87,23.776884]
[1735117142464,4.29011524,197.97,197.86,6.3737]
[1735117143169,7.84288651,197.96,197.86,6.3737]
[1735117145663,12.13300175,197.97,197.86,6.3737]
[1735117146560,4.29011524,197.97,197.86,6.3737]
[1735117147768,7.84288651,197.99,197.89,23.776884]
[1735117147952,7.84288651,197.99,197.9,6.3737]
[1735117148667,1012.84808573,198.0,197.9,6.3737]
[1735117149437,1005.00519922,198.0,197.9,6.3737]
[1735117149762,1005.00519922,198.0,197.96,0.12549]
[1735117149964,998.3334,198.0,197.99,51.339874]
[1735117150139,997.2696,198.0,197.99,50.276074]